bitfinex-derivatives/quotes_SOLF0:USTF0_20260220
["timestamp","ask_amount","ask_price","bid_price","bid_amount"]
[1771628598038,3.57954485,84.66,84.601,27.26465709]
[1771628598241,3.57954485,84.67,84.611,27.26465709]
[1771628598441,3.57954485,84.67,84.634,10.6371]
[1771628598641,3.57954485,84.69,84.635,27.26465709]
[1771628598836,3.57954485,84.69,84.593,21.71991212]
[1771628598837,3.57954485,84.66,84.621,27.26465709]
[1771628599042,3.57954485,84.63,84.596,27.26465709]
[1771628599645,3.57954485,84.63,84.599,10.6415]
[1771628599944,3.57954485,84.63,84.599,37.90615709]
[1771628600146,28.3507175,84.64,84.6,27.26465709]
[1771628600339,28.3507175,84.64,84.605,10.6407]
[1771628600541,28.3507175,84.64,84.6,27.26465709]
[1771628600734,3.57954485,84.63,84.6,27.26465709]
[1771628600944,28.3507175,84.64,84.6,27.26465709]
[1771628601443,3.57954485,84.68,84.621,27.26465709]
[1771628601641,3.57954485,84.66,84.621,27.26465709]
[1771628602245,3.57954485,84.65,84.621,27.26465709]
[1771628602738,3.57954485,84.65,84.623,10.6385]
[1771628604946,3.57954485,84.68,84.629,27.26465709]
[1771628605242,3.57954485,84.7,84.641,27.26465709]
[1771628605442,3.57954485,84.69,84.653,27.26465709]
[1771628606548,3.57954485,84.69,84.656,27.26465709]
[1771628607448,3.57954485,84.7,84.656,27.26465709]
[1771628607648,3.57954485,84.7,84.658,27.26465709]
[1771628608649,3.57954485,84.69,84.658,27.26465709]
[1771628609145,2.05529208,84.726,84.6,21.2828]
[1771628609146,3.57954485,84.67,84.632,27.26465709]
[1771628609348,3.57954485,84.65,84.601,27.26465709]
[1771628609749,3.57954485,84.64,84.604,10.6409]
[1771628609949,3.57954485,84.65,84.604,37.90555709]
[1771628610449,3.57954485,84.65,84.609,10.6402]
[1771628613947,11.03062982,84.692,84.558,35.51]
[1771628613948,24.77117265,84.691,84.612,27.26465709]
[1771628614147,24.77117265,84.691,84.621,27.26465709]
[1771628614148,3.57954485,84.68,84.621,27.26465709]
[1771628614353,24.77117265,84.691,84.582,201.0784]
[1771628614354,3.57954485,84.69,84.631,27.26465709]
[1771628615551,3.57954485,84.69,84.647,27.26465709]
[1771628615955,3.57954485,84.68,84.647,27.26465709]
[1771628616455,28.3507175,84.68,84.638,10.6366]
[1771628617149,28.3507175,84.68,84.634,27.26465709]
[1771628617150,3.57954485,84.67,84.634,27.26465709]
[1771628617749,11.03062982,84.714,84.622,10.6386]
[1771628617750,3.57954485,84.66,84.622,10.6386]
[1771628617949,3.57954485,84.65,84.622,10.6386]
[1771628618349,3.57954485,84.64,84.598,25.24372188]
[1771628619157,26.74533991,84.649,84.598,25.24372188]
[1771628619656,26.74533991,84.649,84.606,10.6406]
[1771628620653,10.6355,84.648,84.606,10.6406]
[1771628622361,26.74533991,84.649,84.606,35.88432188]
[1771628622859,26.74533991,84.649,84.607,25.24372188]
[1771628623363,3.57954485,84.64,84.59,25.24372188]
[1771628624561,26.74533991,84.669,84.61,28.82326673]
[1771628625763,26.74533991,84.669,84.63,10.6376]
[1771628625965,10.6316,84.679,84.631,25.24372188]
[1771628627561,10.6324,84.672,84.631,25.24372188]
[1771628627758,3.57954485,84.67,84.631,25.24372188]
[1771628629768,10.6329,84.669,84.631,25.24372188]
[1771628631069,37.37823991,84.669,84.631,25.24372188]
[1771628631369,10.6339,84.661,84.62,35.88262188]
[1771628631668,3.57954485,84.66,84.62,35.88262188]
[1771628632669,26.74533991,84.668,84.62,35.88262188]
[1771628633669,37.37853991,84.666,84.62,35.88262188]
[1771628633869,3.57482401,84.66,84.62,35.88262188]
[1771628634265,26.74533991,84.665,84.627,10.638]
[1771628634460,3.57482401,84.66,84.628,25.24372188]
[1771628634766,26.74533991,84.665,84.628,25.24372188]
[1771628635663,26.74533991,84.665,84.629,10.6377]
[1771628636171,26.74533991,84.665,84.629,35.88142188]
[1771628636668,3.57482401,84.67,84.63,25.24372188]
[1771628637571,26.74533991,84.679,84.584,14.47994141]
[1771628637572,26.74533991,84.679,84.633,25.24372188]
[1771628638267,10.6305,84.687,84.645,25.24372188]
[1771628638468,35.51,84.714,84.611,25.24372188]
[1771628638469,26.74533991,84.669,84.611,25.24372188]
[1771628638776,3.57482401,84.66,84.611,25.24372188]
[1771628639768,3.57482401,84.66,84.621,10.6388]
[1771628640677,26.74533991,84.658,84.614,10.6397]
[1771628640877,3.57482401,84.65,84.614,10.6397]
[1771628642975,3.57482401,84.65,84.611,25.24372188]
[1771628643278,10.6343,84.657,84.611,25.24372188]
[1771628644079,10.6348,84.653,84.612,10.6399]
[1771628644278,3.57482401,84.65,84.611,25.24372188]
[1771628645675,10.6354,84.648,84.611,25.24372188]
[1771628651393,3.57482401,84.62,84.588,24.7672841]
[1771628654088,3.57482401,84.62,84.576,24.7672841]
[1771628654288,29.13104297,84.61,84.563,24.7672841]
[1771628654495,3.57482401,84.6,84.563,24.7672841]
[1771628654698,3.57482401,84.6,84.564,10.6459]
[1771628656790,3.57482401,84.6,84.55,28.34210811]
[1771628656994,25.55621896,84.609,84.55,28.34210811]
[1771628657193,10.6429,84.589,84.55,24.7672841]
[1771628662401,3.57482401,84.6,84.56,24.7672841]
[1771628663099,29.13104297,84.6,84.56,24.7672841]
[1771628663300,3.57482401,84.59,84.56,24.7672841]
[1771628664702,29.13104297,84.6,84.56,24.7672841]
[1771628664903,25.55621896,84.6,84.56,24.7672841]
[1771628667803,29.13104297,84.6,84.56,24.7672841]
[1771628670304,25.55621896,84.598,84.558,10.6466]
[1771628670605,29.13104297,84.59,84.548,35.4151841]
[1771628673403,29.13104297,84.59,84.551,24.7672841]
[1771628673609,15.26745603,84.6,84.551,24.7672841]
[1771628674306,10.641,84.604,84.551,24.7672841]
[1771628674706,10.641,84.604,84.561,24.7672841]
[1771628675111,22.53997994,84.604,84.561,24.7672841]
[1771628675811,22.53997994,84.604,84.563,24.7672841]
[1771628677012,3.57482401,84.6,84.563,24.7672841]
[1771628677413,3.57482401,84.6,84.565,23.64709159]
[1771628677606,25.79455908,84.599,84.532,23.64709159]
[1771628677811,3.57482401,84.58,84.532,23.64709159]
[1771628678011,25.79455908,84.579,84.538,10.6492]
[1771628678209,25.79455908,84.579,84.538,34.29629159]
[1771628678512,25.79455908,84.579,84.539,23.64709159]
[1771628678710,36.43865908,84.579,84.539,23.64709159]
[1771628683416,11.76225266,84.604,84.543,23.64709159]
[1771628683417,3.57482401,84.59,84.543,23.64709159]
[1771628684419,3.57482401,84.59,84.554,10.6472]
[1771628685422,3.57482401,84.59,84.543,23.64709159]
[1771628686517,3.57482401,84.58,84.543,23.64709159]
[1771628687020,3.57482401,84.58,84.545,10.6483]
[1771628687925,3.57482401,84.58,84.545,34.29539159]
[1771628688123,3.57482401,84.58,84.546,23.64709159]
[1771628692128,29.36938309,84.58,84.537,10.6492]
[1771628694229,29.36938309,84.58,84.534,23.64709159]
[1771628694230,29.36938309,84.58,84.544,10.6485]
[1771628695927,29.37606462,84.58,84.544,10.6485]
[1771628699330,25.79455908,84.578,84.544,10.6485]
[1771628699728,25.79455908,84.578,84.537,10.6493]
[1771628704231,25.79455908,84.578,84.537,34.29639159]
[1771628704831,25.79455908,84.578,84.541,10.6488]
[1771628705032,25.79455908,84.578,84.542,23.64709159]
[1771628706837,25.79455908,84.578,84.544,10.6484]
[1771628707635,25.79455908,84.578,84.506,21.3064]
[1771628707636,11.00346273,84.586,84.516,23.32313755]
[1771628707839,3.58150554,84.57,84.516,23.32313755]
[1771628708539,3.58150554,84.57,84.532,23.32313755]
[1771628708739,3.58150554,84.56,84.532,23.32313755]
[1771628708938,24.39829551,84.582,84.532,23.32313755]
[1771628708939,3.58150554,84.57,84.532,23.32313755]
[1771628709637,3.58150554,84.59,84.547,23.32313755]
[1771628709936,11.76225266,84.604,84.547,23.32313755]
[1771628710141,3.58150554,84.6,84.547,23.32313755]
[1771628710732,27.97980105,84.6,84.56,23.32313755]
[1771628710936,3.58150554,84.59,84.56,23.32313755]
[1771628712341,27.97980105,84.6,84.56,23.32313755]
[1771628724557,27.97980105,84.6,84.564,23.32313755]
[1771628725755,3.58150554,84.59,84.564,23.32313755]
[1771628733162,3.58150554,84.6,84.567,23.32313755]
[1771628733762,3.58150554,84.6,84.571,10.645]
[1771628734062,3.58150554,84.6,84.572,23.32313755]
[1771628739361,21.55661185,84.599,84.56,10.6464]
[1771628739665,25.13811739,84.59,84.56,10.6464]
[1771628744067,12.05030328,84.604,84.524,14.50920685]
[1771628744068,25.13811739,84.58,84.55,10.6476]
[1771628744366,21.55661185,84.559,84.524,23.06143283]
[1771628744566,3.58150554,84.55,84.524,23.06143283]
[1771628745365,21.55661185,84.559,84.524,23.06143283]
[1771628745767,14.75292014,84.598,84.5,3.58150554]
[1771628745768,25.13811739,84.57,84.531,23.06143283]
[1771628745969,22.00692546,84.61,84.531,23.06143283]
[1771628745970,3.58150554,84.58,84.531,23.06143283]
[1771628746467,21.55661185,84.595,84.501,452.40971973]
[1771628746468,3.58150554,84.59,84.548,23.06143283]
[1771628747674,3.58150554,84.59,84.557,23.06143283]
[1771628749669,3.58150554,84.59,84.56,10.6464]
[1771628756677,3.58150554,84.59,84.56,33.70783283]
[1771628757278,3.58150554,84.59,84.564,23.06143283]
[1771628757472,21.55661185,84.605,84.564,23.06143283]
[1771628757473,3.58150554,84.6,84.564,23.06143283]
[1771628757971,3.58001108,84.6,84.564,23.06143283]
[1771628758975,25.13662293,84.6,84.564,23.06143283]
[1771628762078,3.58001108,84.59,84.564,23.06143283]
[1771628762867,21.55661185,84.589,84.556,10.6469]
[1771628763676,21.55661185,84.589,84.556,33.70833283]
[1771628763875,21.55661185,84.589,84.53,3.58001108]
[1771628763876,21.55661185,84.589,84.561,10.6463]
[1771628765681,3.58001108,84.58,84.557,23.06143283]
[1771628766279,21.55661185,84.589,84.557,23.06143283]
[1771628767285,3.58001108,84.58,84.55,10.6477]
[1771628768181,23.91111362,84.58,84.55,10.6477]
[1771628768577,20.33110254,84.58,84.55,10.6477]
[1771628768782,3.58001108,84.58,84.556,20.69609633]
[1771628769286,14.75292014,84.632,84.591,20.69609633]
[1771628769478,3.58001108,84.63,84.591,20.69609633]
[1771628770183,3.58001108,84.65,84.591,20.69609633]
[1771628770375,15.26219157,84.65,84.591,20.69609633]
[1771628770880,15.26219157,84.65,84.612,20.69609633]
[1771628771085,3.58001108,84.65,84.612,20.69609633]
[1771628771390,3.58001108,84.63,84.598,20.69609633]
[1771628775374,3.58001108,84.64,84.608,20.69609633]
[1771628775577,3.58001108,84.65,84.608,20.69609633]
[1771628776783,3.58001108,84.65,84.616,10.6393]
[1771628777481,3.58001108,84.66,84.627,20.69609633]
[1771628777685,20.33110254,84.668,84.627,20.69609633]
[1771628778377,3.58001108,84.66,84.627,20.69609633]
[1771628779985,3.58001108,84.64,84.601,20.69609633]
[1771628780682,3.58001108,84.65,84.601,20.69609633]
[1771628781686,3.58001108,84.65,84.613,20.69609633]
[1771628783089,20.33110254,84.689,84.638,20.69609633]
[1771628783392,3.58001108,84.67,84.638,20.69609633]
[1771628783791,3.58001108,84.68,84.638,20.69609633]
[1771628784783,20.33110254,84.688,84.639,20.69609633]
[1771628785091,3.58001108,84.7,84.641,20.69609633]
[1771628785789,3.58001108,84.7,84.667,20.69609633]
[1771628788788,3.58001108,84.71,84.667,20.69609633]
[1771628788993,20.33110254,84.761,84.667,20.69609633]
[1771628789190,3.58001108,84.71,84.667,20.69609633]
[1771628789496,3.58001108,84.7,84.667,20.69609633]
[1771628790195,3.58001108,84.71,84.667,20.69609633]
[1771628790595,3.58001108,84.71,84.669,20.69609633]
[1771628791299,20.33110254,84.719,84.669,20.69609633]
[1771628791497,20.33110254,84.741,84.674,20.69609633]
[1771628791794,3.58001108,84.71,84.674,20.69609633]
[1771628793393,23.91111362,84.71,84.674,20.69609633]
[1771628793595,20.33110254,84.699,84.651,20.69609633]
[1771628793805,3.58001108,84.71,84.651,20.69609633]
[1771628794295,3.58001108,84.71,84.65,3.58001108]
[1771628794296,3.58001108,84.71,84.67,20.69609633]
[1771628794999,3.58001108,84.71,84.672,10.6323]
[1771628795192,3.58001108,84.71,84.673,20.69609633]
[1771628800006,20.26096173,84.709,84.673,20.69609633]
[1771628800306,20.26096173,84.709,84.641,21.56453841]
[1771628800496,3.58001108,84.7,84.641,21.56453841]
[1771628800998,3.58001108,84.71,84.651,21.56453841]
[1771628801803,10.6278,84.709,84.665,21.56453841]
[1771628803610,30.88876173,84.709,84.665,21.56453841]
[1771628803806,3.58001108,84.7,84.665,21.56453841]
[1771628804102,3.58001108,84.69,84.656,10.6343]
[1771628804807,3.58001108,84.68,84.653,21.56453841]
[1771628806805,3.58001108,84.68,84.645,10.6357]
[1771628807320,10.6303,84.689,84.645,10.6357]
[1771628807507,3.58001108,84.68,84.645,10.6357]
[1771628808008,3.58001108,84.68,84.647,10.6354]
[1771628808208,3.58001108,84.68,84.648,21.56453841]
[1771628808617,3.58001108,84.68,84.621,21.56453841]
[1771628809811,10.6317,84.678,84.634,21.56453841]
[1771628810418,10.6317,84.678,84.62,3.58001108]
[1771628810419,10.6317,84.678,84.636,21.56453841]
[1771628810718,3.58001108,84.66,84.624,21.56453841]
[1771628811116,20.26096173,84.649,84.603,21.56453841]
[1771628811318,3.58001108,84.64,84.603,21.56453841]
[1771628812317,23.84097281,84.64,84.593,10.6423]
[1771628812521,23.84097281,84.64,84.559,21.2931]
[1771628812522,23.84097281,84.63,84.591,21.56453841]
[1771628812723,3.58001108,84.62,84.562,21.56453841]
[1771628813417,3.58001108,84.62,84.564,21.56453841]
[1771628813812,3.58001108,84.62,84.585,10.6433]
[1771628814223,3.58001108,84.61,84.58,21.56453841]
[1771628815225,3.58001108,84.61,84.566,21.56453841]
[1771628815424,3.58001108,84.6,84.566,21.56453841]
[1771628816924,3.58001108,84.61,84.566,21.56453841]
[1771628817328,3.58001108,84.62,84.566,21.56453841]
[1771628817824,3.58001108,84.61,84.566,21.56453841]
[1771628818127,3.578996,84.61,84.566,21.56453841]
[1771628818326,3.578996,84.61,84.569,21.56453841]
[1771628819726,3.578996,84.61,84.573,21.56453841]
[1771628820724,3.578996,84.61,84.575,21.56453841]
[1771628822833,3.578996,84.61,84.577,21.56453841]
[1771628823529,3.578996,84.62,84.577,21.56453841]
[1771628823737,3.578996,84.63,84.577,21.56453841]
[1771628824639,3.578996,84.64,84.594,21.56453841]
[1771628825831,3.578996,84.64,84.6,21.56453841]
[1771628830537,20.26096173,84.655,84.557,10.9261614]
[1771628830538,3.578996,84.65,84.607,20.03384555]
[1771628831238,3.578996,84.66,84.617,20.03384555]
[1771628833038,3.578996,84.66,84.619,20.03384555]
[1771628834735,3.578996,84.67,84.621,20.03384555]
[1771628835732,20.24948008,84.678,84.638,20.03384555]
[1771628836135,3.578996,84.67,84.638,20.03384555]
[1771628836641,23.82847608,84.67,84.627,10.6379]
[1771628837142,3.578996,84.66,84.627,10.6379]
[1771628837546,3.578996,84.66,84.626,20.03384555]
[1771628837743,23.82847608,84.66,84.626,20.03384555]
[1771628838140,23.82847608,84.66,84.611,10.64]
[1771628838345,2.05595385,84.702,84.611,10.64]
[1771628838346,23.82847608,84.65,84.611,10.64]
[1771628839947,23.82847608,84.65,84.603,20.03384555]
[1771628840749,10.6354,84.649,84.607,10.6404]
[1771628841050,23.82847608,84.64,84.581,20.03384555]
[1771628841746,34.46487608,84.64,84.597,20.03384555]
[1771628847049,10.6367,84.638,84.597,20.03384555]
[1771628847254,10.6367,84.638,84.596,10.6419]
[1771628847255,23.82847608,84.63,84.596,10.6419]
[1771628847858,23.82847608,84.63,84.589,10.6428]
[1771628848053,23.82847608,84.63,84.59,20.03384555]
[1771628848957,20.24948008,84.63,84.59,20.03384555]
[1771628849750,20.24948008,84.63,84.592,20.03384555]
[1771628850753,20.24948008,84.63,84.595,20.03384555]
[1771628850950,23.82847608,84.63,84.595,20.03384555]
[1771628852659,3.578996,84.63,84.595,20.03384555]
[1771628852861,10.6367,84.638,84.598,20.03384555]
[1771628854363,3.578996,84.64,84.598,20.03384555]
[1771628855564,3.578996,84.64,84.6,10.6414]
[1771628855766,3.578996,84.64,84.601,20.03384555]
[1771628856667,3.578996,84.64,84.564,14.50920685]
[1771628856668,3.578996,84.62,84.59,20.03384555]
[1771628856868,3.578996,84.61,84.576,20.03384555]
[1771628859268,3.578996,84.61,84.578,10.6441]
[1771628859771,3.578996,84.61,84.576,20.03384555]
[1771628860270,3.578996,84.6,84.57,10.6452]
[1771628860967,3.578996,84.59,84.564,19.36610345]
[1771628861870,3.578996,84.59,84.561,10.6463]
[1771628863675,3.578996,84.58,84.536,19.36610345]
[1771628864068,19.33623621,84.58,84.531,10.9261614]
[1771628864272,3.578996,84.58,84.529,19.36610345]
[1771628864572,19.33623621,84.579,84.532,30.01600345]
[1771628864771,3.578996,84.57,84.532,30.01600345]
[1771628864972,22.91523221,84.57,84.532,30.01600345]
[1771628865167,3.578996,84.56,84.532,30.01600345]
[1771628866073,22.91523221,84.57,84.532,30.01600345]
[1771628867274,19.33623621,84.554,84.5,10.98299165]
[1771628867477,19.33623621,84.554,84.501,19.36610345]
[1771628868774,3.578996,84.55,84.513,19.36610345]
[1771628868977,3.578996,84.54,84.5,19.36610345]
[1771628869383,22.91523221,84.54,84.5,19.36610345]
[1771628869877,3.578996,84.53,84.5,19.36610345]
[1771628872582,11.78931724,84.585,84.5,19.36610345]
[1771628872583,3.578996,84.55,84.5,19.36610345]
[1771628873082,19.33623621,84.557,84.5,19.36610345]
[1771628873784,19.33623621,84.557,84.503,19.36610345]
[1771628875680,19.33623621,84.557,84.513,10.6523]
[1771628875880,19.33623621,84.557,84.501,19.36610345]
[1771628876081,3.578996,84.54,84.501,19.36610345]
[1771628877790,19.33623621,84.539,84.491,30.02110345]
[1771628877979,19.33623621,84.539,84.498,10.6543]
[1771628878184,19.33623621,84.539,84.499,19.36610345]
[1771628879188,19.33623621,84.539,84.504,10.6535]
[1771628880392,19.33623621,84.539,84.499,19.36610345]
[1771628881085,19.33623621,84.539,84.501,10.6538]
[1771628884400,22.92098201,84.55,84.51,19.36610345]
[1771628884798,3.5847458,84.54,84.51,19.36610345]
[1771628888201,22.92098201,84.55,84.51,19.36610345]
[1771628888703,20.48509402,84.548,84.51,19.36610345]
[1771628889704,3.5847458,84.54,84.51,19.36610345]
[1771628893599,20.48509402,84.546,84.51,19.36610345]
[1771628896609,31.13349402,84.545,84.51,19.36610345]
[1771628896799,3.5847458,84.54,84.51,19.36610345]
[1771628897207,20.48509402,84.537,84.498,20.45517534]
[1771628897405,3.5847458,84.53,84.498,20.45517534]
[1771628900712,3.5847458,84.53,84.501,20.45517534]
[1771628902213,10.6493,84.538,84.501,20.45517534]
[1771628903113,10.6493,84.538,84.503,20.45517534]
[1771628910416,3.5847458,84.54,84.505,20.45517534]
[1771628911717,3.5847458,84.54,84.509,10.6528]
[1771628915322,3.5847458,84.54,84.505,20.45517534]
[1771628916423,3.5847458,84.54,84.508,10.653]
[1771628916623,31.13299402,84.549,84.508,10.653]
[1771628916624,20.48509402,84.548,84.509,20.45517534]
[1771628918625,20.48509402,84.548,84.511,18.51971031]
[1771628921032,19.70105034,84.546,84.511,18.51971031]
[1771628921232,3.5847458,84.54,84.511,18.51971031]
[1771628921922,19.70105034,84.546,84.511,18.51971031]
[1771628922728,3.5847458,84.54,84.498,18.51971031]
[1771628922934,23.28579614,84.54,84.498,18.51971031]
[1771628923744,19.70105034,84.537,84.498,18.51971031]
[1771628926128,10.6497,84.535,84.498,18.51971031]
[1771628926334,3.5847458,84.53,84.498,18.51971031]
[1771628927524,10.6497,84.535,84.498,18.51971031]
[1771628927726,19.70105034,84.534,84.498,18.51971031]
[1771628927934,10.6499,84.533,84.498,18.51971031]
[1771628928134,30.35095034,84.533,84.498,18.51971031]
[1771628928534,19.70105034,84.532,84.498,18.51971031]
[1771628929438,19.70105034,84.526,84.486,29.57968515]
[1771628929638,19.70105034,84.526,84.487,18.51971031]
[1771628930032,30.35205034,84.525,84.487,18.51971031]
[1771628930233,19.70105034,84.524,84.487,18.51971031]
[1771628930727,19.70105034,84.521,84.487,18.51971031]
[1771628931636,23.28579614,84.52,84.487,18.51971031]
[1771628931937,19.70105034,84.516,84.477,18.51971031]
[1771628932236,21.2943,84.555,84.477,18.51971031]
[1771628932237,3.5847458,84.5,84.477,18.51971031]
[1771628934237,10.6532,84.507,84.467,18.51971031]
[1771628934433,19.70105034,84.506,84.467,18.51971031]
[1771628935338,23.28579614,84.49,84.457,18.51971031]
[1771628936736,19.70105034,84.488,84.457,18.51971031]
[1771628938834,3.5847458,84.48,84.457,18.51971031]
[1771628939034,3.5847458,84.48,84.446,18.51971031]
[1771628941734,3.5847458,84.48,84.448,18.51971031]
[1771628941934,3.58975342,84.48,84.448,18.51971031]
[1771628942439,19.70105034,84.486,84.448,18.51971031]
[1771628942744,19.70105034,84.486,84.439,10.6617]
[1771628942745,3.58975342,84.47,84.437,18.51971031]
[1771628942946,23.29080376,84.47,84.437,18.51971031]
[1771628946446,3.58975342,84.48,84.439,18.51971031]
[1771628946641,3.58975342,84.49,84.439,18.51971031]
[1771628946940,3.58975342,84.48,84.442,18.51971031]
[1771628947343,22.95274334,84.47,84.432,20.24923113]
[1771628948646,3.58975342,84.47,84.432,20.24923113]
[1771628948846,3.58975342,84.48,84.432,20.24923113]
[1771628949649,3.58975342,84.48,84.437,10.662]
[1771628949945,3.58975342,84.48,84.438,20.24923113]
[1771628950546,3.58975342,84.48,84.439,10.6617]
[1771628950848,3.58975342,84.48,84.44,20.24923113]
[1771628951449,3.58975342,84.48,84.442,20.24923113]
[1771628951747,19.36298992,84.45,84.402,20.24923113]
[1771628951948,22.95274334,84.45,84.402,20.24923113]
[1771628952749,22.95274334,84.45,84.39,3.58975342]
[1771628952750,22.95274334,84.45,84.411,20.24923113]
[1771628953748,22.95274334,84.45,84.414,20.24923113]
[1771628955853,19.36298992,84.449,84.414,20.24923113]
[1771628957953,22.95274334,84.46,84.414,20.24923113]
[1771628958347,19.36298992,84.459,84.416,20.24923113]
[1771628960754,31.30372399,84.459,84.416,20.24923113]
[1771628961649,19.36298992,84.458,84.416,20.24923113]
[1771628962460,3.58975342,84.45,84.416,20.24923113]
[1771628967154,3.58975342,84.45,84.365,14.65493539]
[1771628967155,22.95274334,84.44,84.406,10.6659]
[1771628967554,22.95274334,84.44,84.406,30.91513113]
[1771628967860,22.95274334,84.44,84.407,20.24923113]
[1771628969463,3.58975342,84.43,84.392,20.24923113]
[1771628970862,3.58975342,84.43,84.395,30.91643113]
[1771628971255,19.36298992,84.438,84.401,20.24923113]
[1771628973660,10.6628,84.431,84.401,20.24923113]
[1771628975262,22.95274334,84.43,84.389,20.24923113]
[1771628975664,10.6644,84.418,84.389,20.24923113]
[1771628975862,22.95274334,84.43,84.389,20.24923113]
[1771628976264,10.6635,84.426,84.389,20.24923113]
[1771628977556,3.58975342,84.44,84.389,20.24923113]
[1771628977760,23.55175057,84.45,84.391,19.08939882]
[1771628978661,10.6613,84.443,84.403,19.08939882]
[1771628981866,19.96199715,84.442,84.403,19.08939882]
[1771628982371,3.58975342,84.44,84.403,19.08939882]
[1771628984467,11.94073407,84.459,84.408,19.08939882]
[1771628984664,3.58975342,84.47,84.421,19.08939882]
[1771628984862,3.58975342,84.47,84.443,19.08939882]
[1771628984863,11.91312654,84.47,84.443,19.08939882]
[1771628985060,19.96199715,84.489,84.443,19.08939882]
[1771628985367,3.58975342,84.48,84.443,19.08939882]
[1771628985768,3.58975342,84.47,84.443,19.08939882]
[1771628987972,19.96199715,84.479,84.443,19.08939882]
[1771628988466,19.96199715,84.479,84.442,10.6613]
[1771628988467,3.58975342,84.48,84.446,19.08939882]
[1771628989571,3.58975342,84.48,84.421,11.01883599]
[1771628989572,3.58975342,84.47,84.435,19.08939882]
[1771628990668,3.58975342,84.47,84.439,19.08939882]
[1771628991072,3.58975342,84.48,84.439,19.08939882]
[1771628991467,3.58975342,84.49,84.439,19.08939882]
[1771628991670,3.58975342,84.49,84.45,19.08939882]
[1771628992379,3.58975342,84.5,84.45,19.08939882]
[1771628992571,23.55175057,84.5,84.46,19.08939882]
[1771628993778,35.23811104,84.5,84.46,19.08939882]
[1771628994077,23.55175057,84.5,84.46,19.08939882]
[1771628994780,3.58975342,84.49,84.46,19.08939882]
[1771629001987,3.58899735,84.49,84.46,19.08939882]
[1771629002889,35.64631865,84.5,84.46,19.08939882]
[1771629003591,3.58899735,84.49,84.46,19.08939882]
[1771629004490,35.64631865,84.5,84.46,19.08939882]
[1771629004893,15.6843215,84.5,84.462,19.08939882]
[1771629005292,23.5509945,84.51,84.464,19.08939882]
[1771629005495,3.58899735,84.52,84.464,19.08939882]
[1771629005791,19.96199715,84.523,84.471,19.08939882]
[1771629005991,10.6521,84.516,84.471,19.08939882]
[1771629006193,3.58899735,84.5,84.471,19.08939882]
[1771629006894,3.58899735,84.5,84.44,3.58899735]
[1771629007095,3.58899735,84.5,84.441,19.08939882]
[1771629007791,3.58899735,84.5,84.462,10.6587]
[1771629008696,3.58899735,84.5,84.464,10.6585]
[1771629011193,3.58899735,84.5,84.464,28.92885088]
[1771629012393,3.58899735,84.5,84.465,18.27035088]
[1771629013100,3.58899735,84.5,84.467,10.6581]
[1771629013395,3.58899735,84.5,84.468,18.27035088]
[1771629017897,23.5509945,84.51,84.47,18.27035088]
[1771629018200,3.58899735,84.51,84.47,18.27035088]
[1771629018698,3.58899735,84.51,84.474,18.27035088]
[1771629021900,3.58899735,84.5,84.474,18.27035088]
[1771629030809,3.58899735,84.49,84.452,18.27035088]
[1771629031707,3.58899735,84.49,84.454,18.27035088]
[1771629032811,3.58899735,84.49,84.457,18.27035088]
[1771629033716,3.58899735,84.49,84.459,18.27035088]
[1771629036822,3.58899735,84.49,84.461,10.6589]
[1771629037119,3.58899735,84.49,84.462,18.27035088]
[1771629039625,21.90880243,84.49,84.454,18.63885583]
[1771629046027,21.90880243,84.49,84.455,29.29855583]
[1771629046733,21.90880243,84.49,84.456,18.63885583]
[1771629049727,10.6557,84.487,84.456,18.63885583]
[1771629050035,21.90880243,84.48,84.447,29.29955583]
[1771629051034,21.90880243,84.48,84.448,18.63885583]
[1771629053131,3.58899735,84.49,84.453,18.63885583]
[1771629053335,18.31980508,84.491,84.453,18.63885583]
[1771629054834,18.31980508,84.491,84.457,18.63885583]
[1771629055536,3.58899735,84.49,84.457,18.63885583]
[1771629060839,10.6546,84.496,84.457,18.63885583]
[1771629061237,10.6546,84.496,84.458,10.6593]
[1771629061537,10.6546,84.496,84.459,18.63885583]
[1771629062841,28.97440508,84.496,84.459,18.63885583]
[1771629063241,3.58899735,84.51,84.467,18.63885583]
[1771629063738,21.90880243,84.51,84.47,10.6578]
[1771629064043,21.90774747,84.51,84.471,18.63885583]
[1771629064639,10.653,84.509,84.471,18.63885583]
[1771629066943,3.58794239,84.51,84.471,18.63885583]
[1771629067147,18.86163072,84.522,84.478,19.69430468]
[1771629067544,3.58794239,84.53,84.478,19.69430468]
[1771629068447,15.35416597,84.53,84.478,19.69430468]
[1771629068648,15.35416597,84.53,84.486,10.6557]
[1771629068847,15.35416597,84.53,84.487,19.66616232]
[1771629070442,15.35416597,84.53,84.489,10.6554]
[1771629070647,15.35416597,84.53,84.49,19.66616232]
[1771629070845,3.58794239,84.55,84.49,23.25410471]
[1771629072047,15.16089873,84.55,84.49,23.25410471]
[1771629072854,15.16089873,84.55,84.511,19.66616232]